[Event "Mitropa Online Cup Open 2021"]
[Site "Hybrid"]
[Date "2021.05.04"]
[Round "4.4"]
[White "Kurmann, Oliver"]
[Black "Sonis, Francesco"]
[Result "1/2-1/2"]
[ECO "B23"]
[WhiteElo "2430"]
[BlackElo "2493"]
[Annotator "ChessBase"]
[PlyCount "111"]
[EventDate "2021.05.04"]
[EventType "team-tourn"]
[EventCountry "NET"]
[SourceTitle "playchess.com"]
[Source "ChessBase"]
[SourceQuality "1"]
[WhiteTeam "Switzerland"]
[BlackTeam "Italy"]
[WhiteTeamCountry "SUI"]
[BlackTeamCountry "ITA"]
[TimeControl "40/5400+30:1800+30"]

1. e4 {[%emt 0:00:00]} c5 {[%emt 0:00:04]} 2. Nc3 {[%emt 0:00:11]} d6 {[%emt 0:00:09]} 3. f4 {[%emt 0:00:18]} g6 {[%emt 0:01:17]} 4. d4 {[%emt 0:00:54]} cxd4 {[%emt 0:00:39]} 5. Qxd4 {[%emt 0:00:03]} Nf6 {[%emt 0:00:04]} 6. Nf3 {[%emt 0:00:04]} Bg7 {[%emt 0:00:15]} 7. Bd3 {[%emt 0:00:25]} O-O {[%emt 0:00:07]} 8. Qf2 {[%emt 0:00:30]} Nc6 {[%emt 0:04:50]} 9. O-O {[%emt 0:00:05]} Nd7 {[%emt 0:07:50]} 10. f5 {[%emt 0:17:54]} Nc5 {[%emt 0:10:40]} 11. Qh4 {[%emt 0:20:48]} Nxd3 {[%emt 0:11:48]} 12. fxg6 {[%emt 0:11:16]} fxg6 {[%emt 0:01:17]} 13. cxd3 {[%emt 0:03:52]} e6 {[%emt 0:03:30]} 14. Qxd8 {[%emt 0:11:09]} Rxd8 {[%emt 0:00:21]} 15. Bg5 {[%emt 0:00:12]} Rd7 {[%emt 0:00:10]} 16. Rad1 {[%emt 0:10:30]} b5 {[%emt 0:07:51]} 17. Rd2 {[%emt 0:01:23]} b4 {[%emt 0:00:27]} 18. Ne2 {[%emt 0:00:12]} Ba6 {[%emt 0:01:45]} 19. Be3 {[%emt 0:04:50]} Rc8 {[%emt 0:11:02]} 20. d4 {[%emt 0:01:12]} Na5 {[%emt 0:03:53]} 21. b3 {[%emt 0:00:19]} Rdc7 {[%emt 0:01:39]} 22. Rb1 {[%emt 0:01:32]} Rc2 {[%emt 0:00:26]} 23. Rb2 {[%emt 0:00:09]} Rxb2 {[%emt 0:02:06]} 24. Rxb2 {[%emt 0:00:03]} Bb7 {[%emt 0:00:12]} 25. Ng3 {[%emt 0:00:51]} Rc3 {[%emt 0:00:23]} 26. Kf2 {[%emt 0:00:36]} Rc8 {[%emt 0:05:25]} 27. Ke1 {[%emt 0:03:10]} Nc6 {[%emt 0:04:38]} 28. Kd2 {[%emt 0:00:59]} a5 {[%emt 0:04:10]} 29. Rc2 {[%emt 0:01:41]} a4 {[%emt 0:00:51]} 30. Kc1 {[%emt 0:02:57]} axb3 {[%emt 0:01:09]} 31. axb3 {[%emt 0:00:03]} Ra8 {[%emt 0:00:03]} 32. Kb2 {[%emt 0:00:07]} h6 {[%emt 0:04:13]} 33. h4 {[%emt 0:00:11]} g5 {[%emt 0:02:26]} 34. hxg5 {[%emt 0:00:04]} hxg5 {[%emt 0:00:03]} 35. Ne2 {[%emt 0:00:07]} g4 {[%emt 0:00:17]} 36. Ng5 {[%emt 0:00:02]} Bh6 {[%emt 0:03:02]} 37. Bd2 {[%emt 0:00:20]} Nd8 {[%emt 0:02:23]} 38. Rc7 {[%emt 0:05:04]} Bxg5 {[%emt 0:01:59]} 39. Bxg5 {[%emt 0:00:03]} Bxe4 {[%emt 0:00:03]} 40. g3 {[%emt 0:00:00]} e5 {[%emt 0:00:00]} 41. Be3 {[%emt 0:13:12]} Bf3 {[%emt 0:05:39]} 42. Nc1 {[%emt 0:00:07]} Nc6 {[%emt 0:00:30]} 43. Nd3 {[%emt 0:06:27]} exd4 {[%emt 0:00:47]} 44. Bd2 {[%emt 0:00:05]} Rb8 {[%emt 0:04:17]} 45. Nf4 {[%emt 0:01:16]} Rb5 {[%emt 0:00:26]} 46. Rd7 {[%emt 0:02:25]} Be4 {[%emt 0:08:18]} 47. Ne6 {[%emt 0:00:03]} Bf5 {[%emt 0:01:57]} 48. Rxd6 {[%emt 0:00:22]} Bxe6 {[%emt 0:00:04]} 49. Rxc6 {[%emt 0:03:55]} Re5 {[%emt 0:00:28]} 50. Rd6 {[%emt 0:00:04]} Re2 {[%emt 0:01:10]} 51. Rxd4 {[%emt 0:00:06]} Rg2 {[%emt 0:00:02]} 52. Rd3 {[%emt 0:02:50]} Bf5 {[%emt 0:00:11]} 53. Rd5 {[%emt 0:01:25]} Be6 {[%emt 0:00:05]} 54. Rd3 {[%emt 0:00:08]} Bf5 {[%emt 0:00:04]} 55. Rd5 {[%emt 0:00:03]} Be6 {[%emt 0:00:03]} 56. Rd3 {[%emt 0:00:04]} 1/2-1/2

[Event "Mitropa Online Cup Open 2021"]
[Site "Hybrid"]
[Date "2021.05.04"]
[Round "4.5"]
[White "Zelcic, Robert"]
[Black "Spalir, Jernej"]
[Result "1-0"]
[ECO "C06"]
[WhiteElo "2539"]
[BlackElo "2389"]
[Annotator "ChessBase"]
[PlyCount "123"]
[EventDate "2021.05.04"]
[EventType "team-tourn"]
[EventCountry "NET"]
[SourceTitle "playchess.com"]
[Source "ChessBase"]
[SourceQuality "1"]
[WhiteTeam "Croatia"]
[BlackTeam "Slovenia"]
[WhiteTeamCountry "CRO"]
[BlackTeamCountry "SLO"]
[TimeControl "40/5400+30:1800+30"]

1. e4 {[%emt 0:00:00]} e6 {[%emt 0:00:06]} 2. d4 {[%emt 0:00:09]} d5 {[%emt 0:00:05]} 3. Nd2 {[%emt 0:05:07]} Nf6 {[%emt 0:00:25]} 4. Bd3 {[%emt 0:00:35]} c5 {[%emt 0:02:25]} 5. e5 {[%emt 0:07:20]} Nfd7 {[%emt 0:00:14]} 6. c3 {[%emt 0:00:20]} Nc6 {[%emt 0:00:06]} 7. Ne2 {[%emt 0:00:30]} cxd4 {[%emt 0:01:09]} 8. cxd4 {[%emt 0:00:09]} f6 {[%emt 0:00:07]} 9. exf6 {[%emt 0:00:05]} Nxf6 {[%emt 0:00:07]} 10. Nf3 {[%emt 0:00:07]} Bd6 {[%emt 0:00:06]} 11. O-O {[%emt 0:01:29]} O-O {[%emt 0:00:24]} 12. Bf4 {[%emt 0:02:04]} Bxf4 {[%emt 0:00:23]} 13. Nxf4 {[%emt 0:00:07]} Ne4 {[%emt 0:01:00]} 14. Ne2 {[%emt 0:01:31]} Bd7 {[%emt 0:06:01]} 15. Bxe4 {[%emt 0:05:20]} dxe4 {[%emt 0:00:35]} 16. Nd2 {[%emt 0:00:06]} Qb6 {[%emt 0:00:19]} 17. Nc4 {[%emt 0:08:08]} Qa6 {[%emt 0:12:28]} 18. Nd6 {[%emt 0:12:52]} Rad8 {[%emt 0:10:31]} 19. Nxe4 {[%emt 0:00:28]} Bc8 {[%emt 0:00:55]} 20. Qc2 {[%emt 0:16:15]} Nxd4 {[%emt 0:07:54]} 21. Nxd4 {[%emt 0:00:11]} Rxd4 {[%emt 0:00:03]} 22. Rad1 {[%emt 0:00:37]} Qc4 {[%emt 0:02:49]} 23. Qxc4 {[%emt 0:00:44]} Rxc4 {[%emt 0:00:05]} 24. f3 {[%emt 0:00:04]} Rb4 {[%emt 0:11:10]} 25. Rd2 {[%emt 0:00:35]} b6 {[%emt 0:00:25]} 26. Rc1 {[%emt 0:00:25]} Bb7 {[%emt 0:00:24]} 27. a3 {[%emt 0:01:52]} Rb3 {[%emt 0:01:48]} 28. Nc3 {[%emt 0:03:21]} h6 {[%emt 0:02:49]} 29. Re1 {[%emt 0:01:50]} Bd5 {[%emt 0:00:27]} 30. Kf2 {[%emt 0:05:12]} Rf7 {[%emt 0:10:15]} 31. Re3 {[%emt 0:00:25]} Bc4 {[%emt 0:00:10]} 32. Re4 {[%emt 0:09:01]} Rc7 {[%emt 0:01:05]} 33. Re3 {[%emt 0:02:34]} Kf7 {[%emt 0:02:07]} 34. Ne4 {[%emt 0:00:41]} Rxe3 {[%emt 0:01:05]} 35. Kxe3 {[%emt 0:00:07]} Bd5 {[%emt 0:00:16]} 36. Nd6+ {[%emt 0:01:41]} Ke7 {[%emt 0:01:45]} 37. Nb5 {[%emt 0:00:07]} Rc5 {[%emt 0:02:04]} 38. Nxa7 {[%emt 0:04:55]} Kd7 {[%emt 0:00:26]} 39. a4 {[%emt 0:00:06]} Ra5 {[%emt 0:00:13]} 40. Nb5 {[%emt 0:00:00]} Rxa4 {[%emt 0:00:00]} 41. Nc3 {[%emt 0:00:11]} Ra5 {[%emt 0:00:09]} 42. Rd4 {[%emt 0:10:44]} Kc6 {[%emt 0:13:59]} 43. Rg4 {[%emt 0:00:07]} Ra7 {[%emt 0:01:34]} 44. Kd4 {[%emt 0:01:52]} Bb3 {[%emt 0:00:17]} 45. Ke3 {[%emt 0:02:14]} Kc5 {[%emt 0:02:30]} 46. h4 {[%emt 0:05:41]} b5 {[%emt 0:03:14]} 47. Rf4 {[%emt 0:03:59]} Bc2 {[%emt 0:02:38]} 48. b4+ {[%emt 0:00:40]} Kc6 {[%emt 0:00:05]} 49. Rf8 {[%emt 0:00:51]} Rd7 {[%emt 0:06:57]} 50. Rc8+ {[%emt 0:02:18]} Kb6 {[%emt 0:00:09]} 51. Nxb5 {[%emt 0:02:48]} Bh7 {[%emt 0:07:00]} 52. Rb8+ {[%emt 0:00:47]} Kc6 {[%emt 0:00:10]} 53. Nd4+ {[%emt 0:00:10]} Kd5 {[%emt 0:00:19]} 54. Rc8 {[%emt 0:03:51]} Rb7 {[%emt 0:01:53]} 55. Rc5+ {[%emt 0:00:05]} Kd6 {[%emt 0:00:05]} 56. Nb5+ {[%emt 0:00:06]} Kd7 {[%emt 0:00:08]} 57. Kd4 {[%emt 0:00:47]} Bb1 {[%emt 0:00:36]} 58. Ke5 {[%emt 0:02:38]} Bd3 {[%emt 0:03:18]} 59. Nd4 {[%emt 0:00:38]} Rxb4 {[%emt 0:00:48]} 60. Nxe6 {[%emt 0:00:13]} Rxh4 {[%emt 0:00:40]} 61. Rc7+ {[%emt 0:00:13]} Ke8 {[%emt 0:00:04]} 62. Kd6 {[%emt 0:00:06]} 1-0

[Event "Mitropa Online Cup Open 2021"]
[Site "Hybrid"]
[Date "2021.05.04"]
[Round "4.5"]
[White "Rogic, Davor"]
[Black "Sebenik, Matej"]
[Result "1/2-1/2"]
[ECO "C07"]
[WhiteElo "2492"]
[BlackElo "2498"]
[Annotator "ChessBase"]
[PlyCount "61"]
[EventDate "2021.05.04"]
[EventType "team-tourn"]
[EventCountry "NET"]
[SourceTitle "playchess.com"]
[Source "ChessBase"]
[SourceQuality "1"]
[WhiteTeam "Croatia"]
[BlackTeam "Slovenia"]
[WhiteTeamCountry "CRO"]
[BlackTeamCountry "SLO"]
[TimeControl "40/5400+30:1800+30"]

1. e4 {[%emt 0:00:00]} e6 {[%emt 0:00:18]} 2. d4 {[%emt 0:00:16]} d5 {[%emt 0:00:10]} 3. Nd2 {[%emt 0:00:15]} c5 {[%emt 0:00:16]} 4. Ngf3 {[%emt 0:00:26]} cxd4 {[%emt 0:00:57]} 5. Nxd4 {[%emt 0:00:16]} Nc6 {[%emt 0:00:29]} 6. Bb5 {[%emt 0:00:37]} Bd7 {[%emt 0:00:19]} 7. Nxc6 {[%emt 0:00:12]} bxc6 {[%emt 0:00:13]} 8. Bd3 {[%emt 0:00:11]} Bd6 {[%emt 0:01:59]} 9. Qe2 {[%emt 0:00:42]} e5 {[%emt 0:01:40]} 10. exd5 {[%emt 0:03:59]} cxd5 {[%emt 0:00:10]} 11. c4 {[%emt 0:02:00]} Ne7 {[%emt 0:01:11]} 12. cxd5 {[%emt 0:03:55]} Nxd5 {[%emt 0:00:20]} 13. Nc4 {[%emt 0:01:37]} Bb4+ {[%emt 0:01:45]} 14. Bd2 {[%emt 0:07:28]} O-O {[%emt 0:01:51]} 15. O-O {[%emt 0:03:40]} Bxd2 {[%emt 0:07:15]} 16. Qxd2 {[%emt 0:00:37]} Nf4 {[%emt 0:08:20]} 17. Rfd1 {[%emt 0:23:48]} Qc7 {[%emt 0:26:09]} 18. Bf1 {[%emt 0:04:36]} Be6 {[%emt 0:18:55]} 19. Qd6 {[%emt 0:02:27]} Qb7 {[%emt 0:01:54]} 20. Nxe5 {[%emt 0:20:35]} Qxb2 {[%emt 0:01:38]} 21. Nd7 {[%emt 0:02:21]} Rad8 {[%emt 0:14:07]} 22. Rab1 {[%emt 0:08:05]} Qc2 {[%emt 0:04:18]} 23. Qxf4 {[%emt 0:05:32]} Rxd7 {[%emt 0:00:11]} 24. Rxd7 {[%emt 0:01:43]} Qxb1 {[%emt 0:00:10]} 25. Rxa7 {[%emt 0:01:38]} Bxa2 {[%emt 0:04:21]} 26. Rc7 {[%emt 0:01:22]} Be6 {[%emt 0:00:21]} 27. Qc1 {[%emt 0:00:41]} Qxc1 {[%emt 0:00:08]} 28. Rxc1 {[%emt 0:00:05]} Rc8 {[%emt 0:00:06]} 29. Rxc8+ {[%emt 0:00:08]} Bxc8 {[%emt 0:00:08]} 30. f3 {[%emt 0:00:10]} Kf8 {[%emt 0:00:09]} 31. Kf2 {[%emt 0:00:11]} 1/2-1/2

[Event "Mitropa Online Cup Open 2021"]
[Site "Hybrid"]
[Date "2021.05.04"]
[Round "4.5"]
[White "Markoja, Boris"]
[Black "Kovacevic, Blazimir"]
[Result "1-0"]
[ECO "A15"]
[WhiteElo "2442"]
[BlackElo "2410"]
[Annotator "NA"]
[PlyCount "113"]
[EventDate "2021.05.04"]
[EventType "team-tourn"]
[EventCountry "NET"]
[SourceTitle "playchess.com"]
[Source "ChessBase"]
[SourceQuality "1"]
[WhiteTeam "Slovenia"]
[BlackTeam "Croatia"]
[WhiteTeamCountry "SLO"]
[BlackTeamCountry "CRO"]
[TimeControl "40/5400+30:1800+30"]

1. c4 {[%emt 0:00:00]} e6 {[%emt 0:00:29]} 2. g3 {[%emt 0:00:09]} Nf6 {[%emt 0:00:05]} 3. Bg2 {[%emt 0:00:35]} Be7 {[%emt 0:00:42]} 4. d4 {[%emt 0:01:12]} O-O {[%emt 0:01:35]} 5. e4 {[%emt 0:09:42]} d5 {[%emt 0:00:51]} 6. e5 {[%emt 0:02:18]} Nfd7 {[%emt 0:00:27]} 7. cxd5 {[%emt 0:01:07]} exd5 {[%emt 0:00:04]} 8. Nf3 {[%emt 0:07:57]} Nb6 {[%emt 0:06:17]} 9. Nc3 {[%emt 0:03:12]} Nc6 {[%emt 0:06:34]} 10. O-O {[%emt 0:06:00]} Bf5 {[%emt 0:02:15]} 11. h3 {[%emt 0:14:38]} Qd7 {[%emt 0:11:42]} 12. Kh2 {[%emt 0:01:09]} f6 {[%emt 0:07:38]} 13. Bf4 {[%emt 0:03:30]} Rae8 {[%emt 0:13:12]} 14. b3 {[%emt 0:08:07]} g5 {[%emt 0:04:53]} 15. exf6 {[%emt 0:03:09]} gxf4 {[%emt 0:00:11]} 16. fxe7 {[%emt 0:00:14]} fxg3+ {[%emt 0:18:54]} 17. fxg3 {[%emt 0:00:12]} Rxe7 {[%emt 0:00:03]} 18. Nh4 {[%emt 0:03:10]} Be6 {[%emt 0:09:55]} 19. Rxf8+ {[%emt 0:02:20]} Kxf8 {[%emt 0:00:04]} 20. Qd2 {[%emt 0:00:28]} Ke8 {[%emt 0:01:53]} 21. Ne2 {[%emt 0:04:13]} Kd8 {[%emt 0:02:57]} 22. Nf4 {[%emt 0:00:57]} Kc8 {[%emt 0:01:47]} 23. Rf1 {[%emt 0:03:52]} Qd6 {[%emt 0:02:02]} 24. Nxe6 {[%emt 0:01:59]} Qxe6 {[%emt 0:01:17]} 25. Nf5 {[%emt 0:01:16]} Rf7 {[%emt 0:02:16]} 26. g4 {[%emt 0:01:06]} Ne7 {[%emt 0:00:59]} 27. Re1 {[%emt 0:04:53]} Qf6 {[%emt 0:00:06]} 28. Qe3 {[%emt 0:03:06]} Kd7 {[%emt 0:00:19]} 29. Nxe7 {[%emt 0:01:27]} Rxe7 {[%emt 0:00:09]} 30. Qxe7+ {[%emt 0:00:07]} Qxe7 {[%emt 0:00:03]} 31. Rxe7+ {[%emt 0:00:08]} Kxe7 {[%emt 0:00:02]} 32. Kg3 {[%emt 0:00:26]} c6 {[%emt 0:04:31]} 33. g5 {[%emt 0:00:49]} Nc8 {[%emt 0:01:22]} 34. Bf1 {[%emt 0:00:58]} Kf7 {[%emt 0:00:47]} 35. Bd3 {[%emt 0:00:25]} Kg7 {[%emt 0:00:03]} 36. Kf4 {[%emt 0:00:57]} Nd6 {[%emt 0:00:05]} 37. h4 {[%emt 0:00:20]} Nf7 {[%emt 0:00:05]} 38. Kf5 {[%emt 0:01:12]} h6 {[%emt 0:00:12]} 39. gxh6+ {[%emt 0:01:57]} Nxh6+ {[%emt 0:00:04]} 40. Ke6 {[%emt 0:00:00]} Ng4 {[%emt 0:00:00]} 41. Kd6 {[%emt 0:06:57]} Nf2 {[%emt 0:00:14]} 42. Bc2 {[%emt 0:14:14]} Ne4+ {[%emt 0:00:07]} 43. Kc7 {[%emt 0:00:08]} c5 {[%emt 0:15:33]} 44. Kxb7 {[%emt 0:05:53]} cxd4 {[%emt 0:00:07]} 45. Kxa7 {[%emt 0:00:28]} Nc5 {[%emt 0:02:06]} 46. b4 {[%emt 0:04:28]} d3 {[%emt 0:00:07]} 47. Bb1 {[%emt 0:00:56]} d2 {[%emt 0:00:44]} 48. Bc2 {[%emt 0:00:07]} Nd3 {[%emt 0:01:13]} 49. b5 {[%emt 0:00:11]} Nb4 {[%emt 0:00:05]} 50. Bb3 {[%emt 0:00:58]} Nxa2 {[%emt 0:01:35]} 51. b6 {[%emt 0:00:18]} Nb4 {[%emt 0:03:45]} 52. b7 {[%emt 0:00:47]} Nc6+ {[%emt 0:01:15]} 53. Kb6 {[%emt 0:00:18]} Nb8 {[%emt 0:00:46]} 54. Kc5 {[%emt 0:00:28]} d4 {[%emt 0:04:54]} 55. Kxd4 {[%emt 0:02:51]} Nc6+ {[%emt 0:00:05]} 56. Ke3 {[%emt 0:00:31]} Na5 {[%emt 0:00:25]} 57. b8=Q {[%emt 0:00:13]} 1-0

[Event "Mitropa Online Cup Open 2021"]
[Site "Hybrid"]
[Date "2021.05.04"]
[Round "4.5"]
[White "Dobrovoljc, Vid"]
[Black "Tica, Sven"]
[Result "1-0"]
[ECO "B11"]
[WhiteElo "2377"]
[BlackElo "2396"]
[Annotator "NA"]
[PlyCount "83"]
[EventDate "2021.05.04"]
[EventType "team-tourn"]
[EventCountry "NET"]
[SourceTitle "playchess.com"]
[Source "ChessBase"]
[SourceQuality "1"]
[WhiteTeam "Slovenia"]
[BlackTeam "Croatia"]
[WhiteTeamCountry "SLO"]
[BlackTeamCountry "CRO"]
[TimeControl "40/5400+30:1800+30"]

1. e4 {[%emt 0:00:00]} c6 {[%emt 0:00:06]} 2. Nf3 {[%emt 0:00:22]} d5 {[%emt 0:00:04]} 3. Nc3 {[%emt 0:00:27]} dxe4 {[%emt 0:00:05]} 4. Nxe4 {[%emt 0:00:15]} Nf6 {[%emt 0:00:01]} 5. Qe2 {[%emt 0:00:34]} Nxe4 {[%emt 0:00:05]} 6. Qxe4 {[%emt 0:00:06]} Nd7 {[%emt 0:00:04]} 7. Bc4 {[%emt 0:01:35]} Nf6 {[%emt 0:00:05]} 8. Ne5 {[%emt 0:00:30]} e6 {[%emt 0:00:03]} 9. Qe2 {[%emt 0:01:20]} b5 {[%emt 0:00:05]} 10. Bd3 {[%emt 0:08:52]} Qc7 {[%emt 0:00:05]} 11. a4 {[%emt 0:03:35]} Bd6 {[%emt 0:00:05]} 12. Nf3 {[%emt 0:11:31]} O-O {[%emt 0:15:20]} 13. Ng5 {[%emt 0:08:14]} h6 {[%emt 0:11:56]} 14. Ne4 {[%emt 0:01:52]} Nxe4 {[%emt 0:00:17]} 15. Bxe4 {[%emt 0:06:07]} f5 {[%emt 0:01:00]} 16. Bf3 {[%emt 0:00:10]} e5 {[%emt 0:00:45]} 17. g3 {[%emt 0:07:58]} e4 {[%emt 0:09:36]} 18. Bg2 {[%emt 0:00:05]} Be6 {[%emt 0:00:55]} 19. O-O {[%emt 0:01:50]} Rae8 {[%emt 0:05:51]} 20. d3 {[%emt 0:10:05]} exd3 {[%emt 0:12:28]} 21. cxd3 {[%emt 0:00:17]} f4 {[%emt 0:00:33]} 22. Bxf4 {[%emt 0:04:11]} Bxf4 {[%emt 0:07:21]} 23. gxf4 {[%emt 0:00:35]} Rxf4 {[%emt 0:03:47]} 24. Rae1 {[%emt 0:09:38]} Bd7 {[%emt 0:09:43]} 25. Qh5 {[%emt 0:00:39]} Ref8 {[%emt 0:01:57]} 26. axb5 {[%emt 0:03:37]} R8f5 {[%emt 0:04:36]} 27. Qg6 {[%emt 0:04:44]} Rg5 {[%emt 0:03:40]} 28. Re8+ {[%emt 0:00:16]} Bxe8 {[%emt 0:00:11]} 29. Qxe8+ {[%emt 0:00:02]} Kh7 {[%emt 0:01:22]} 30. Qxc6 {[%emt 0:00:06]} Qe5 {[%emt 0:01:51]} 31. Kh1 {[%emt 0:02:29]} Qxb5 {[%emt 0:02:42]} 32. Be4+ {[%emt 0:00:29]} Kg8 {[%emt 0:00:14]} 33. Qe6+ {[%emt 0:00:25]} Rf7 {[%emt 0:02:20]} 34. Rc1 {[%emt 0:04:33]} Rc5 {[%emt 0:02:01]} 35. Rxc5 {[%emt 0:00:53]} Qxc5 {[%emt 0:00:04]} 36. Bd5 {[%emt 0:00:58]} Qc1+ {[%emt 0:01:11]} 37. Kg2 {[%emt 0:00:42]} Qg5+ {[%emt 0:00:07]} 38. Kf1 {[%emt 0:01:06]} Qc1+ {[%emt 0:00:03]} 39. Kg2 {[%emt 0:00:12]} Qg5+ {[%emt 0:00:04]} 40. Kf1 {[%emt 0:00:00]} Qc1+ {[%emt 0:00:00]} 41. Qe1 {[%emt 0:01:13]} Qc8 {[%emt 0:00:22]} 42. Qe7 {[%emt 0:04:42]} 1-0

[Event "Mitropa Online Cup Open 2021"]
[Site "Hybrid"]
[Date "2021.05.04"]
[Round "5.1"]
[White "Markoja, Boris"]
[Black "Prusikin, Michael"]
[Result "1/2-1/2"]
[ECO "E06"]
[WhiteElo "2442"]
[BlackElo "2547"]
[Annotator "ChessBase"]
[PlyCount "60"]
[EventDate "2021.05.04"]
[EventType "team-tourn"]
[EventCountry "NET"]
[SourceTitle "playchess.com"]
[Source "ChessBase"]
[SourceQuality "1"]
[WhiteTeam "Slovenia"]
[BlackTeam "Germany"]
[WhiteTeamCountry "SLO"]
[BlackTeamCountry "GER"]
[TimeControl "40/5400+30:1800+30"]

1. d4 {[%emt 0:00:00]} d5 {[%emt 0:00:05]} 2. c4 {[%emt 0:00:09]} e6 {[%emt 0:00:03]} 3. Nf3 {[%emt 0:00:11]} Nf6 {[%emt 0:00:06]} 4. g3 {[%emt 0:00:14]} Be7 {[%emt 0:00:04]} 5. Bg2 {[%emt 0:00:17]} O-O {[%emt 0:00:04]} 6. Nc3 {[%emt 0:00:38]} c6 {[%emt 0:00:58]} 7. O-O {[%emt 0:00:47]} b6 {[%emt 0:09:57]} 8. b3 {[%emt 0:01:08]} Ba6 {[%emt 0:01:10]} 9. Nd2 {[%emt 0:00:36]} b5 {[%emt 0:00:48]} 10. Bb2 {[%emt 0:14:14]} bxc4 {[%emt 0:10:38]} 11. bxc4 {[%emt 0:01:26]} dxc4 {[%emt 0:00:27]} 12. Qc2 {[%emt 0:15:58]} Nd5 {[%emt 0:04:54]} 13. Rfd1 {[%emt 0:03:51]} Nd7 {[%emt 0:01:24]} 14. a3 {[%emt 0:03:23]} Rb8 {[%emt 0:07:39]} 15. e4 {[%emt 0:01:56]} Nxc3 {[%emt 0:00:45]} 16. Bxc3 {[%emt 0:00:37]} Qc7 {[%emt 0:06:00]} 17. Bf1 {[%emt 0:03:19]} Nb6 {[%emt 0:04:15]} 18. a4 {[%emt 0:08:12]} c5 {[%emt 0:10:00]} 19. a5 {[%emt 0:00:17]} Nd7 {[%emt 0:01:08]} 20. d5 {[%emt 0:02:35]} exd5 {[%emt 0:01:49]} 21. exd5 {[%emt 0:00:34]} Ne5 {[%emt 0:01:31]} 22. Qe4 {[%emt 0:03:43]} Bd6 {[%emt 0:02:23]} 23. Rab1 {[%emt 0:10:33]} Rbe8 {[%emt 0:07:27]} 24. Qc2 {[%emt 0:01:31]} h5 {[%emt 0:07:14]} 25. Bxe5 {[%emt 0:03:15]} Rxe5 {[%emt 0:00:25]} 26. Nxc4 {[%emt 0:05:25]} Bxc4 {[%emt 0:00:24]} 27. Qxc4 {[%emt 0:00:08]} Qxa5 {[%emt 0:00:54]} 28. Ra1 {[%emt 0:00:42]} Qc7 {[%emt 0:01:44]} 29. Ra6 {[%emt 0:03:51]} Qe7 {[%emt 0:06:27]} 30. Qa2 {[%emt 0:02:42]} Qf6 {[%emt 0:02:28]} 1/2-1/2

[Event "Mitropa Online Cup Open 2021"]
[Site "Hybrid"]
[Date "2021.05.04"]
[Round "5.1"]
[White "Spalir, Jernej"]
[Black "Koellner, Ruben Gideon"]
[Result "1/2-1/2"]
[ECO "D36"]
[WhiteElo "2389"]
[BlackElo "2412"]
[Annotator "NA"]
[PlyCount "102"]
[EventDate "2021.05.04"]
[EventType "team-tourn"]
[EventCountry "NET"]
[SourceTitle "playchess.com"]
[Source "ChessBase"]
[SourceQuality "1"]
[WhiteTeam "Slovenia"]
[BlackTeam "Germany"]
[WhiteTeamCountry "SLO"]
[BlackTeamCountry "GER"]
[TimeControl "40/5400+30:1800+30"]

1. d4 {[%emt 0:00:00]} d5 {[%emt 0:00:20]} 2. c4 {[%emt 0:00:29]} e6 {[%emt 0:00:03]} 3. Nc3 {[%emt 0:00:05]} Nf6 {[%emt 0:00:05]} 4. cxd5 {[%emt 0:00:07]} exd5 {[%emt 0:00:07]} 5. Bg5 {[%emt 0:00:10]} Be7 {[%emt 0:00:03]} 6. e3 {[%emt 0:00:05]} c6 {[%emt 0:00:16]} 7. Bd3 {[%emt 0:00:21]} h6 {[%emt 0:01:22]} 8. Bh4 {[%emt 0:00:06]} Nbd7 {[%emt 0:00:04]} 9. Qc2 {[%emt 0:00:06]} Nh5 {[%emt 0:00:09]} 10. Bxe7 {[%emt 0:00:06]} Qxe7 {[%emt 0:00:03]} 11. O-O-O {[%emt 0:03:39]} Nb6 {[%emt 0:00:35]} 12. Nf3 {[%emt 0:00:06]} Be6 {[%emt 0:02:07]} 13. Kb1 {[%emt 0:00:37]} Nf6 {[%emt 0:04:45]} 14. h3 {[%emt 0:13:16]} O-O-O {[%emt 0:02:02]} 15. Rc1 {[%emt 0:00:58]} Kb8 {[%emt 0:00:24]} 16. Na4 {[%emt 0:05:22]} Nxa4 {[%emt 0:03:53]} 17. Qxa4 {[%emt 0:01:10]} Ne4 {[%emt 0:01:52]} 18. Qc2 {[%emt 0:22:13]} Bf5 {[%emt 0:05:31]} 19. Nd2 {[%emt 0:07:26]} Nxd2+ {[%emt 0:06:57]} 20. Qxd2 {[%emt 0:00:04]} Bxd3+ {[%emt 0:00:03]} 21. Qxd3 {[%emt 0:00:06]} Rhf8 {[%emt 0:01:24]} 22. Qf5 {[%emt 0:04:49]} Rd6 {[%emt 0:01:19]} 23. Rc2 {[%emt 0:04:38]} Rf6 {[%emt 0:02:33]} 24. Qg4 {[%emt 0:00:10]} Re6 {[%emt 0:04:16]} 25. Qf5 {[%emt 0:03:12]} Qd6 {[%emt 0:02:35]} 26. g3 {[%emt 0:01:44]} g6 {[%emt 0:01:07]} 27. Qd3 {[%emt 0:01:09]} f5 {[%emt 0:01:55]} 28. h4 {[%emt 0:00:08]} Qe7 {[%emt 0:02:14]} 29. a3 {[%emt 0:02:08]} a6 {[%emt 0:01:03]} 30. Rc3 {[%emt 0:02:36]} Re4 {[%emt 0:02:00]} 31. Ka2 {[%emt 0:01:41]} g5 {[%emt 0:05:14]} 32. hxg5 {[%emt 0:00:06]} hxg5 {[%emt 0:00:03]} 33. Rh6 {[%emt 0:06:05]} Ka7 {[%emt 0:07:23]} 34. Qc2 {[%emt 0:01:27]} Rf6 {[%emt 0:05:24]} 35. Rxf6 {[%emt 0:03:38]} Qxf6 {[%emt 0:00:23]} 36. Qd1 {[%emt 0:00:30]} f4 {[%emt 0:01:49]} 37. gxf4 {[%emt 0:00:23]} gxf4 {[%emt 0:00:04]} 38. Qf3 {[%emt 0:00:32]} Qe6 {[%emt 0:04:38]} 39. Rb3 {[%emt 0:00:50]} fxe3 {[%emt 0:01:06]} 40. fxe3 {[%emt 0:00:00]} Qe7 {[%emt 0:00:00]} 41. Qg3 {[%emt 0:01:03]} Rh4 {[%emt 0:02:55]} 42. Rc3 {[%emt 0:08:11]} Rh1 {[%emt 0:00:46]} 43. Qg6 {[%emt 0:03:38]} Rh3 {[%emt 0:03:23]} 44. Qd3 {[%emt 0:00:35]} Qh7 {[%emt 0:04:51]} 45. Qxh7 {[%emt 0:00:41]} Rxh7 {[%emt 0:00:04]} 46. Rc2 {[%emt 0:00:57]} Re7 {[%emt 0:00:19]} 47. Re2 {[%emt 0:00:11]} a5 {[%emt 0:01:53]} 48. Kb3 {[%emt 0:00:05]} b6 {[%emt 0:00:32]} 49. Kc3 {[%emt 0:00:18]} c5 {[%emt 0:02:00]} 50. b3 {[%emt 0:02:31]} Re4 {[%emt 0:07:42]} 51. Kd3 {[%emt 0:04:07]} Rh4 {[%emt 0:01:59]} 1/2-1/2